Workbook

Sheet Order Form Actions
B2: lululemon Fall '20 - Sportswear - Sportswear
B3: Order Form

Sheet Sportswear
A1: Order Form | D1: Customer: | E1: lululemon | R1: lululemon Fall 2020
A2: Vancouver Downtown | D2: P/O: | E2: 123456
A4: Style | C4: Colour | E4: Ins. | F4: Ship | G4: CXL | H4: Wholesale | I4: Retail | J4: Buy | L4: Sizes
D6: Coats + Jackets
L8: 4/XS | M8: 6/S | N8: 8/M | O8: 10/L | P8: 12/XL | AA8: Total | AB8: Wholesale | AC8: Retail
A9: 53878088 | B9: lululemon: Always There Trench Coat | C9: 024 | D9: Frontier | H9: 69.5 | I9: 278 | L9: 2 | M9: 6 | N9: 6 | O9: 4 | P9: 2 | AA9: 20 | AB9: =ROUND(AA9*H9,2) -> 1390 | AC9: =ROUND(AA9*I9,2) -> 5560
B10: Polyutherance, Polyester, Nylon, Elastance | C10: 011 | D10: Iron Blue | H10: 69.5 | I10: 278 | L10: 1 | M10: 4 | N10: 4 | O10: 2 | P10: 1 | AA10: 12 | AB10: 834 | AC10: 3336
L15: 4/XS | M15: 6/S | N15: 8/M | O15: 10/L | P15: 12/XL | AA15: Total | AB15: Wholesale | AC15: Retail
A16: 54559810 | B16: lululemon: Define Jacket Ice Dye | C16: 070 | D16: Ice Wash Moss Green | H16: 34.5 | I16: 138 | L16: 5 | M16: 5 | N16: 5 | O16: 5 | P16: 5 | AA16: 25 | AB16: =ROUND(AA16*H16,2) -> 862.5 | AC16: =ROUND(AA16*I16,2) -> 3450
B17: Nulux | AA17: =SUM(L17:P17) -> 0 | AB17: 0 | AC17: 0
AA18: 0 | AB18: 0 | AC18: 0
L22: 4/XS | M22: 6/S | N22: 8/M | O22: 10/L | P22: 12/XL | AA22: Total | AB22: Wholesale | AC22: Retail
A23: 53791901 | B23: lululemon: Always Effortless Jacket | C23: 030 | D23: Medium Olive | H23: 34.5 | I23: 138 | L23: 2 | M23: 5 | N23: 5 | O23: 5 | P23: 3 | AA23: 16 | AB23: =ROUND(AA23*H23,2) -> 552 | AC23: =ROUND(AA23*I23,2) -> 2208
B24: Nylon, Polyester, Elastene | C24: 001 | D24: Black | H24: 34.5 | I24: 138 | L24: 2 | M24: 5 | N24: 5 | O24: 5 | P24: 3 | AA24: 12 | AB24: 414 | AC24: 1656
C25: 009 | D25: Grey Sage | H25: 34.5 | I25: 138 | L25: 1 | M25: 2 | N25: 3 | O25: 2 | P25: 2 | AA25: 16 | AB25: 552 | AC25: 2208
C26: 024 | D26: Frontier | H26: 34.5 | I26: 138 | M26: 2 | N26: 2 | O26: 2 | AA26: =SUM(L26:P26) -> 6 | AB26: 207 | AC26: 828
C27: 004 | D27: Pink | H27: 34.5 | I27: 138 | L27: 2 | M27: 4 | N27: 4 | O27: 1 | P27: 1 | AA27: 12 | AB27: 414 | AC27: 1656
AA28: 0 | AB28: 0 | AC28: 0
L30: 4/XS | M30: 6/S | N30: 8/M | O30: 10/L | P30: 12/XL | AA30: Total | AB30: Wholesale | AC30: Retail
A31: 53146429 | B31: lululemon: Going Places Hooded Jacket | C31: 009 | D31: Grey Sage | H31: 44.5 | I31: 178 | L31: 2 | M31: 4 | N31: 4 | O31: 4 | P31: 2 | AA31: =SUM(L31:P31) -> 16 | AB31: =ROUND(AA31*H31,2) -> 712 | AC31: =ROUND(AA31*I31,2) -> 2848
B32: Cotton, Polyester, Elastane | C32: 001 | D32: Black | H32: 44.5 | I32: 178 | L32: 2 | M32: 4 | N32: 4 | O32: 4 | P32: 2 | AA32: 16 | AB32: 712 | AC32: 2848
L38: 4/XS | M38: 6/S | N38: 8/M | O38: 10/L | P38: 12/XL | AA38: Total | AB38: Wholesale | AC38: Retail
A39: 53700670 | B39: lululemon: Down For It All Jacket | C39: 001 | D39: Black | H39: 49.5 | I39: 198 | L39: 4 | M39: 6 | N39: 6 | O39: 2 | P39: 2 | AA39: =SUM(L39:P39) -> 20 | AB39: =ROUND(AA39*H39,2) -> 990 | AC39: =ROUND(AA39*I39,2) -> 3960
B40: Nylon, Polyester, Elastene | C40: 034 | D40: Moss Green | H40: 49.5 | I40: 198 | L40: 2 | M40: 4 | N40: 6 | O40: 2 | P40: 1 | AA40: 15 | AB40: 742.5 | AC40: 2970
C41: 012 | D41: Porcelain Pink | H41: 49.5 | I41: 198 | M41: 1 | N41: 2 | O41: 1 | AA41: 4 | AB41: 198 | AC41: 792
L46: 4/XS | M46: 6/S | N46: 8/M | O46: 10/L | P46: 12/XL | AA46: Total | AB46: Wholesale | AC46: Retail
A47: 52722765 | B47: lululemon: Another Mile Jacket | C47: 070 | D47: Cassis | H47: 57 | I47: 228 | L47: 2 | M47: 4 | N47: 5 | O47: 3 | P47: 1 | AA47: =SUM(L47:P47) -> 15 | AB47: =ROUND(AA47*H47,2) -> 855 | AC47: =ROUND(AA47*I47,2) -> 3420
B48: Polyester, Nylon | C48: 001 | D48: Black | H48: 57 | I48: 228 | L48: 2 | M48: 4 | N48: 5 | O48: 3 | P48: 1 | AA48: 15 | AB48: 855 | AC48: 3420
C49: 00 | D49: White | H49: 57 | I49: 228 | L49: 1 | M49: 4 | N49: 4 | O49: 2 | P49: 1 | AA49: 12 | AB49: 684 | AC49: 2736
L54: 4/XS | M54: 6/S | N54: 8/M | O54: 10/L | P54: 12/XL | AA54: Total | AB54: Wholesale | AC54: Retail
A55: 53791901 | B55: lululemon: Non-Stop Bomber Reversible | C55: 001 | D55: Black | H55: 37 | I55: 148 | L55: 2 | M55: 4 | N55: 4 | O55: 4 | P55: 2 | AA55: =SUM(L55:U55) -> 16 | AB55: =ROUND(AA55*H55,2) -> 592 | AC55: =ROUND(AA55*I55,2) -> 2368
B56: Nylon, Polyester, Lycra® elastane | C56: 008 | D56: Pink Fawn | H56: 37 | I56: 148 | L56: 2 | M56: 3 | N56: 4 | O56: 3 | P56: 2 | AA56: 14 | AB56: 518 | AC56: 2072
C57: 024 | D57: Frontier | H57: 37 | I57: 148 | L57: 1 | M57: 2 | N57: 2 | O57: 2 | P57: 1 | AA57: 8 | AB57: 296 | AC57: 1184
C58: 066 | D58: Parachute | H58: 37 | I58: 148 | L58: 1 | M58: 2 | N58: 4 | O58: 1 | AA58: 8 | AB58: 296 | AC58: 1184
L62: 4/XS | M62: 6/S | N62: 8/M | O62: 10/L | P62: 12/XL | AA62: Total | AB62: Wholesale | AC62: Retail
A63: 53695367 | B63: lululemon: Pack it Down Jacket Long | C63: 044 | D63: Cherry Tint | H63: 62 | I63: 248 | L63: 2 | M63: 6 | N63: 6 | O63: 4 | AA63: =SUM(L63:P63) -> 18 | AB63: =ROUND(AA63*H63,2) -> 1116 | AC63: =ROUND(AA63*I63,2) -> 4464
B64: Polyester, Grey goose down, Grey Goose Feathers | C64: 001 | D64: Black | H64: 62 | I64: 248 | L64: 4 | M64: 6 | N64: 6 | O64: 4 | P64: 2 | AA64: 22 | AB64: 1364 | AC64: 5456
L70: 4/XS | M70: 6/S | N70: 8/M | O70: 10/L | P70: 12/XL | AA70: Total | AB70: Wholesale | AC70: Retail
A71: 53147757 | B71: lululemon: Rain Rebel Jacket | C71: 055 | D71: Chambray | H71: 57 | I71: 228 | L71: 2 | M71: 4 | N71: 4 | O71: 4 | P71: 2 | AA71: =SUM(L71:U71) -> 16 | AB71: =ROUND(AA71*H71,2) -> 912 | AC71: =ROUND(AA71*I71,2) -> 3648
B72: Polyester | C72: 001 | D72: Black | H72: 57 | I72: 228 | L72: 2 | M72: 4 | N72: 4 | O72: 4 | P72: 2 | AA72: 16 | AB72: 912 | AC72: 3648
C73: 088 | D73: Misty Pink | H73: 57 | I73: 228 | M73: 1 | N73: 2 | O73: 1 | AA73: 4 | AB73: 228 | AC73: 912
C74: 009 | D74: Grey Sage | H74: 57 | I74: 228 | M74: 2 | N74: 2 | O74: 1 | P74: 1 | AA74: 6 | AB74: 342 | AC74: 1368
L78: 4/XS | M78: 6/S | N78: 8/M | O78: 10/L | P78: 12/XL | AA78: Total | AB78: Wholesale | AC78: Retail
A79: 52731437 | B79: lululemon: Break a Trail Jacket | C79: 035 | D79: Cerulean Blue | H79: 62 | I79: 248 | L79: 1 | M79: 4 | N79: 4 | O79: 2 | P79: 1 | AA79: =SUM(L79:U79) -> 12 | AB79: =ROUND(AA79*H79,2) -> 744 | AC79: =ROUND(AA79*I79,2) -> 2976
B80: Polyurethane, Polyester, Elastane | C80: 090 | D80: Incognito Camo Multi Grey | H80: 62 | I80: 248 | L80: 2 | M80: 6 | N80: 6 | O80: 4 | P80: 2 | AA80: 20 | AB80: 1240 | AC80: 4960
C81: 00 | D81: White | H81: 62 | I81: 248 | L81: 2 | M81: 6 | N81: 6 | O81: 4 | P81: 2 | AA81: 20 | AB81: 1240 | AC81: 4960
C82: 012 | D82: Porcelain Pink | H82: 62 | I82: 248 | L82: 1 | M82: 2 | N82: 2 | O82: 1 | AA82: 6 | AB82: 372 | AC82: 1488
AD86: Subtotal for Coats + Jackets: | AE86: =SUM(AA8:AA85) -> 418 | AF86: =ROUND(SUM(AB8:AB85),2) -> 21146 | AG86: 84584
D90: Hoodies + Sweatshirts
L92: 4/XS | M92: 6/S | N92: 8/M | O92: 10/L | P92: 12/XL | AA92: Total | AB92: Wholesale | AC92: Retail
A93: 53840278 | B93: lululemon: Sit in Lotus Hoodie Sweater | C93: 045 | D93: Heathered Pink Taupe | H93: 32 | I93: 128 | M93: 4 | N93: 4 | O93: 2 | AA93: =SUM(L93:U93) -> 10 | AB93: =ROUND(AA93*H93,2) -> 320 | AC93: =ROUND(AA93*I93,2) -> 1280
B94: Merino Wool | C94: 001 | D94: Black | H94: 32 | I94: 128 | L94: 2 | M94: 6 | N94: 6 | O94: 4 | P94: 2 | AA94: 20 | AB94: 640 | AC94: 2560
C95: 046 | D95: Heathered Core Ultra Light Grey | H95: 32 | I95: 128 | L95: 2 | M95: 6 | N95: 6 | O95: 4 | P95: 2 | AA95: 20 | AB95: 640 | AC95: 2560
C96: 047 | D96: Heathered Grey Sage | H96: 32 | I96: 128 | L96: 2 | M96: 6 | N96: 6 | O96: 4 | P96: 2 | AA96: 20 | AB96: 640 | AC96: 2560
L99: 4/XS | M99: 6/S | N99: 8/M | O99: 10/L | P99: 12/XL | AA99: Total | AB99: Wholesale | AC99: Retail
A100: 54424734 | B100: lululemon: Step Aside Zip Hoodie | C100: 046 | D100: Heathered Core Ultra Light Grey | H100: 37 | I100: 148 | L100: 2 | M100: 6 | N100: 6 | O100: 4 | P100: 2 | AA100: =SUM(L100:U100) -> 20 | AB100: =ROUND(AA100*H100,2) -> 740 | AC100: =ROUND(AA100*I100,2) -> 2960
B101: Organic Cotton, Elastance
L106: 4/XS | M106: 6/S | N106: 8/M | O106: 10/L | P106: 12/XL | AA106: Total | AB106: Wholesale | AC106: Retail
A107: 53898615 | B107: lululemon: Scuba Hoodie Light Cotton Fleece | C107: 091 | D107: Incognito Camo Multi Grey | H107: 29.5 | I107: 118 | L107: 2 | M107: 6 | N107: 6 | O107: 8 | P107: 2 | AA107: =SUM(L107:U107) -> 24 | AB107: =ROUND(AA107*H107,2) -> 708 | AC107: =ROUND(AA107*I107,2) -> 2832
B108: Cotton, Polyester, Nylon, Elastane | C108: 000 | D108: Dark Red | H108: 29.5 | I108: 118 | M108: 2 | N108: 2 | O108: 1 | P108: 1 | AA108: 6 | AB108: 177 | AC108: 708
C109: 031 | D109: Dark Olive | H109: 29.5 | I109: 118 | L109: 2 | M109: 4 | N109: 4 | O109: 2 | P109: 2 | AA109: 14 | AB109: 413 | AC109: 1652
C110: 046 | D110: Heathered Core Ultra Light Grey | H110: 29.5 | I110: 118 | L110: 2 | M110: 6 | N110: 6 | O110: 4 | P110: 2 | AA110: 20 | AB110: 590 | AC110: 2360
C111: 00 | D111: White | H111: 29.5 | I111: 118 | L111: 2 | M111: 6 | N111: 6 | O111: 4 | P111: 2 | AA111: 20 | AB111: 590 | AC111: 2360
AA112: =SUM(L112:P112) -> 0 | AB112: 0 | AC112: 0
L113: 4/XS | M113: 6/S | N113: 8/M | O113: 10/L | P113: 12/XL | AA113: Total | AB113: Wholesale | AC113: Retail
A114: 53700670 | B114: lululemon: All Yours Crew Graphic | C114: 005 | D114: Violet Verbana | H114: 27 | I114: 108 | L114: 2 | M114: 4 | N114: 8 | O114: 4 | P114: 2 | AA114: =SUM(L114:P114) -> 20 | AB114: =ROUND(AA114*H114,2) -> 540 | AC114: =ROUND(AA114*I114,2) -> 2160
B115: Cotton, Polyester, Elastane | C115: 00 | D115: White | H115: 27 | I115: 108 | L115: 2 | M115: 4 | N115: 8 | O115: 4 | P115: 2 | AA115: 20 | AB115: 540 | AC115: 2160
C116: 021 | D116: Earth Brown | H116: 27 | I116: 108 | L116: 2 | M116: 4 | N116: 8 | O116: 4 | P116: 2 | AA116: 20 | AB116: 540 | AC116: 2160
L120: 4/XS | M120: 6/S | N120: 8/M | O120: 10/L | P120: 12/XL | AA120: Total | AB120: Wholesale | AC120: Retail
A121: 52097011 | B121: lululemon: Every Journey Hoodie II | C121: 029 | D121: Antique White | H121: 34.5 | I121: 138 | L121: 4 | M121: 10 | N121: 10 | O121: 6 | P121: 2 | AA121: =SUM(L121:P121) -> 32 | AB121: =ROUND(AA121*H121,2) -> 1104 | AC121: =ROUND(AA121*I121,2) -> 4416
B122: Nulu | C122: 001 | D122: Black | H122: 34.5 | I122: 138 | L122: 4 | M122: 10 | N122: 12 | O122: 6 | P122: 2 | AA122: 34 | AB122: 1173 | AC122: 4692
C123: 006 | D123: Iced Iris | H123: 34.5 | I123: 138 | L123: 2 | M123: 4 | N123: 4 | O123: 4 | P123: 2 | AA123: 16 | AB123: 552 | AC123: 2208
C124: 043 | D124: Rustic Coral | H124: 34.5 | I124: 138 | M124: 2 | N124: 2 | O124: 2 | AA124: 6 | AB124: 207 | AC124: 828
AA125: 0 | AB125: 0 | AC125: 0
AA126: 0 | AB126: 0 | AC126: 0
L127: 4/XS | M127: 6/S | N127: 8/M | O127: 10/L | P127: 12/XL | AA127: Total | AB127: Wholesale | AC127: Retail
A128: 54106844 | B128: lululemon | C128: 016 | D128: Aurora Glow Jacquard Black True Navy | H128: 42 | I128: 168 | L128: 4 | M128: 6 | N128: 8 | O128: 6 | P128: 2 | AA128: =SUM(L128:P128) -> 26 | AB128: =ROUND(AA128*H128,2) -> 1092 | AC128: =ROUND(AA128*I128,2) -> 4368
B129: luxtreme | C129: 017 | D129: Aurora Glow Jacquard Black Obsidian | H129: 42 | I129: 168 | L129: 4 | M129: 6 | N129: 8 | O129: 6 | P129: 2 | AA129: 26 | AB129: 1092 | AC129: 4368
L134: 4/XS | M134: 6/S | N134: 8/M | O134: 10/L | P134: 12/XL | AA134: Total | AB134: Wholesale | AC134: Retail
A135: 53919049 | B135: lululemon: Perfectly Oversized Crew | C135: 007 | D135: Brier Rose | H135: 27 | I135: 108 | L135: 2 | M135: 4 | N135: 4 | O135: 2 | AA135: =SUM(L135:P135) -> 12 | AB135: =ROUND(AA135*H135,2) -> 324 | AC135: =ROUND(AA135*I135,2) -> 1296
B136: Cotton, Elastane | C136: 011 | D136: Iron Blue | H136: 27 | I136: 108 | L136: 2 | M136: 4 | N136: 4 | O136: 2 | P136: 2 | AA136: 14 | AB136: 378 | AC136: 1512
C137: 048 | D137: Heathered Core Medium Grey | H137: 27 | I137: 108 | L137: 2 | M137: 6 | N137: 8 | O137: 6 | P137: 2 | AA137: 24 | AB137: 648 | AC137: 2592
C138: 009 | D138: Grey Sage | H138: 27 | I138: 108 | L138: 2 | M138: 6 | N138: 8 | O138: 6 | P138: 2 | AA138: 24 | AB138: 648 | AC138: 2592
C139: 001 | D139: Black | H139: 27 | I139: 108 | L139: 1 | M139: 6 | N139: 6 | O139: 4 | P139: 1 | AA139: 18 | AB139: 486 | AC139: 1944
C140: 013 | D140: True Navy
L141: 4/XS | M141: 6/S | N141: 8/M | O141: 10/L | P141: 12/XL | AA141: Total | AB141: Wholesale | AC141: Retail
A142: 53744165 | B142: lululemon: Dynamic Movement Zip Hoodie | C142: 028 | D142: Silk Rose | H142: 47 | I142: 188 | L142: 4 | M142: 6 | N142: 6 | O142: 4 | P142: 2 | AA142: =SUM(L142:P142) -> 22 | AB142: =ROUND(AA142*H142,2) -> 1034 | AC142: =ROUND(AA142*I142,2) -> 4136
B143: Cotton, Polyester, Lycra® elastane | C143: 001 | D143: Black | H143: 47 | I143: 188 | L143: 4 | M143: 8 | N143: 8 | O143: 4 | P143: 4 | AA143: 28 | AB143: 1316 | AC143: 5264
C144: 014 | D144: Light Ivory | H144: 47 | I144: 188 | L144: 2 | M144: 5 | N144: 5 | O144: 2 | P144: 2 | AA144: 16 | AB144: 752 | AC144: 3008
L148: 4/XS | M148: 6/S | N148: 8/M | O148: 10/L | P148: 12/XL | AA148: Total | AB148: Wholesale | AC148: Retail
A149: 52352358 | B149: lululemon: LA Pullover Crew | C149: 071 | D149: Watercolor Wash Lunar Rock/Black/Larkspur | H149: 29.5 | I149: 118 | L149: 2 | M149: 10 | N149: 10 | O149: 6 | P149: 2 | AA149: =SUM(L149:U149) -> 30 | AB149: =ROUND(AA149*H149,2) -> 885 | AC149: =ROUND(AA149*I149,2) -> 3540
B150: Cotton Blend | C150: 072 | D150: Watercolor Wash White/Stargaze/Daydream/Key Lime | H150: 29.5 | I150: 118 | L150: 2 | M150: 10 | N150: 10 | O150: 6 | AA150: 28 | AB150: 826 | AC150: 3304
C151: 073 | D151: Watercolor Wash White/Stargaze | H151: 29.5 | I151: 118 | L151: 2 | M151: 8 | N151: 8 | O151: 8 | AA151: 26 | AB151: 767 | AC151: 3068
AA152: =SUM(L152:P152) -> 0 | AB152: 0 | AC152: 0
AA153: 0 | AB153: 0 | AC153: 0
AA154: 0 | AB154: 0 | AC154: 0
AA155: 0 | AB155: 0 | AC155: 0
L157: 4/XS | M157: 6/S | N157: 8/M | O157: 10/L | P157: 12/XL | AA157: Total | AB157: Wholesale | AC157: Retail
A158: 52352359 | B158: lululemon:Retreat Yourself Hoodie | C158: 046 | D158: Heathered Core Ultra Light Grey | H158: 37 | I158: 148 | L158: 2 | M158: 2 | N158: 6 | O158: 6 | P158: 2 | AA158: =SUM(L158:U158) -> 18 | AB158: =ROUND(AA158*H158,2) -> 666 | AC158: =ROUND(AA158*I158,2) -> 2664
B159: Cotton, Polyester, Lycra® elastane | C159: 039 | D159: Heathered Graphite Grey | H159: 37 | I159: 148 | L159: 2 | M159: 2 | N159: 6 | O159: 6 | P159: 2 | AA159: 18 | AB159: 666 | AC159: 2664
AA160: =SUM(L160:P160) -> 0 | AB160: 0 | AC160: 0
AA161: 0 | AB161: 0 | AC161: 0
AA162: 0 | AB162: 0 | AC162: 0
AA163: 0 | AB163: 0 | AC163: 0
L165: 4/XS | M165: 6/S | N165: 8/M | O165: 10/L | P165: 12/XL | AA165: Total | AB165: Wholesale | AC165: Retail
A166: 52352350 | B166: lululemon: All Yours Hoodie Colourblock | C166: 101 | D166: Starlight/Asphalt Grey/Graphite Grey | H166: 29.5 | I166: 118 | L166: 2 | M166: 4 | N166: 4 | O166: 2 | AA166: =SUM(L166:U166) -> 12 | AB166: =ROUND(AA166*H166,2) -> 354 | AC166: =ROUND(AA166*I166,2) -> 1416
B167: Cotton, Elastane | AA167: =SUM(L167:P167) -> 0 | AB167: 0 | AC167: 0
AA168: 0 | AB168: 0 | AC168: 0
AA169: 0 | AB169: 0 | AC169: 0
AA170: 0 | AB170: 0 | AC170: 0
AA171: 0 | AB171: 0 | AC171: 0
L173: 4/XS | M173: 6/S | N173: 8/M | O173: 10/L | P173: 12/XL | AA173: Total | AB173: Wholesale | AC173: Retail
A174: 52342458 | B174: lululemon: City Sweat Crew Spacer | C174: 006 | D174: Iced Iris | H174: 22.25 | I174: 89 | L174: 2 | M174: 4 | N174: 6 | O174: 2 | P174: 2 | AA174: =SUM(L174:P174) -> 16 | AB174: =ROUND(AA174*H174,2) -> 356 | AC174: =ROUND(AA174*I174,2) -> 1424
B175: Nylon, Polyester, Lycra® elastane | C175: 101 | D175: Tiger | H175: 22.25 | I175: 89 | N175: 2 | O175: 2 | AA175: 4 | AB175: 89 | AC175: 356
C176: 001 | D176: Black | H176: 22.25 | I176: 89 | L176: 2 | M176: 4 | N176: 8 | O176: 6 | P176: 4 | AA176: 24 | AB176: 534 | AC176: 2136
AA177: 0 | AB177: 0 | AC177: 0
AA178: 0 | AB178: 0 | AC178: 0
AA179: 0 | AB179: 0 | AC179: 0
AD182: Subtotal for Hoodies + Sweatshirts: | AE182: =SUM(AA92:AA181) -> 708 | AF182: 23027 | AG182: =ROUND(SUM(AC92:AC181),2) -> 92108
D185: Leggings
L187: 4/XS | M187: 6/S | N187: 8/M | O187: 10/L | P187: 12/XL | AA187: Total | AB187: Wholesale | AC187: Retail
A188: 52377358 | B188: lululemon: Fast and Free Tight 25" Ice Dye | C188: 901 | D188: Ice Wash Cerulean Blue | H188: 37 | I188: 148 | L188: 6 | M188: 12 | N188: 12 | O188: 10 | P188: 2 | AA188: =SUM(L188:U188) -> 42 | AB188: =ROUND(AA188*H188,2) -> 1554 | AC188: =ROUND(AA188*I188,2) -> 6216
B189: Nylon, Lycra® elastane | C189: 902 | D189: Ice Wash Moss Green | H189: 37 | I189: 148 | L189: 6 | M189: 12 | N189: 12 | O189: 10 | P189: 2 | AA189: 42 | AB189: 1554 | AC189: 6216
C190: 903 | D190: Ice Wash Hazel Green | H190: 37 | I190: 148 | L190: 6 | M190: 12 | N190: 12 | O190: 10 | P190: 2 | AA190: 42 | AB190: 1554 | AC190: 6216
C191: 904 | D191: Ice Wash Asphalt Grey | H191: 37 | I191: 148 | L191: 6 | M191: 12 | N191: 12 | O191: 10 | P191: 2 | AA191: 42 | AB191: 1554 | AC191: 6216
AA192: =SUM(L192:P192) -> 0 | AB192: 0 | AC192: 0
AA193: 0 | AB193: 0 | AC193: 0
L195: 4/XS | M195: 6/S | N195: 8/M | O195: 10/L | P195: 12/XL | AA195: Total | AB195: Wholesale | AC195: Retail
A196: 55652358 | B196: lululemon: Fast and Free Tight II 25" Non-Reflective Nulux | C196: 040 | D196: Activate Floral Multi | H196: 34.5 | I196: 138 | M196: 12 | N196: 12 | O196: 8 | P196: 2 | AA196: =SUM(L196:P196) -> 34 | AB196: =ROUND(AA196*H196,2) -> 1173 | AC196: =ROUND(AA196*I196,2) -> 4692
B197: Nylon, Lycra® elastane | C197: 091 | D197: Incognito Camo Multi Grey | H197: 34.5 | I197: 138 | M197: 12 | N197: 12 | O197: 8 | P197: 2 | AA197: 34 | AB197: 1173 | AC197: 4692
C198: 013 | D198: True Navy | H198: 34.5 | I198: 138 | L198: 2 | M198: 10 | N198: 10 | O198: 6 | P198: 2 | AA198: 30 | AB198: 1035 | AC198: 4140
C199: 020 | D199: Cassis | H199: 34.5 | I199: 138 | L199: 2 | M199: 10 | N199: 10 | O199: 6 | AA199: 28 | AB199: 966 | AC199: 3864
C200: 000 | D200: Dark Red | H200: 34.5 | I200: 138 | M200: 4 | N200: 4 | O200: 4 | AA200: 12 | AB200: 414 | AC200: 1656
AA201: 0 | AB201: 0 | AC201: 0
L203: 4/XS | M203: 6/S | N203: 8/M | O203: 10/L | P203: 12/XL | AA203: Total | AB203: Wholesale | AC203: Retail
A204: 52351158 | B204: lululemon: Align Pant II 25" Diamond Dye | C204: 440 | D204: Diamond Dye Graphite Grey Pink Pastel | H204: 29.5 | I204: 118 | L204: 4 | M204: 12 | N204: 12 | O204: 10 | P204: 2 | AA204: =SUM(L204:U204) -> 40 | AB204: =ROUND(AA204*H204,2) -> 1180 | AC204: =ROUND(AA204*I204,2) -> 4720
B205: Cotton | C205: 441 | D205: Diamond Dye Iced Iris Peri Purple | H205: 29.5 | I205: 118 | L205: 4 | M205: 12 | N205: 12 | O205: 10 | P205: 2 | AA205: 40 | AB205: 1180 | AC205: 4720
AA206: =SUM(L206:P206) -> 0 | AB206: 0 | AC206: 0
AA207: 0 | AB207: 0 | AC207: 0
AA208: 0 | AB208: 0 | AC208: 0
AA209: 0 | AB209: 0 | AC209: 0
L211: 4/XS | M211: 6/S | N211: 8/M | O211: 10/L | P211: 12/XL | AA211: Total | AB211: Wholesale | AC211: Retail
A212: 52300358 | B212: lululemon: Wunder Train High-Rise Tight 25" | C212: 007 | D212: Brier Rose | H212: 24.5 | I212: 98 | L212: 4 | M212: 10 | N212: 10 | O212: 8 | P212: 2 | AA212: =SUM(L212:P212) -> 34 | AB212: =ROUND(AA212*H212,2) -> 833 | AC212: =ROUND(AA212*I212,2) -> 3332
B213: Luxtreme | C213: 069 | D213: Heathered Cassis | H213: 24.5 | I213: 98 | L213: 4 | M213: 10 | N213: 10 | O213: 8 | P213: 2 | AA213: 34 | AB213: 833 | AC213: 3332
C214: 031 | D214: Dark Olive | H214: 24.5 | I214: 98 | L214: 8 | M214: 12 | N214: 12 | O214: 10 | P214: 2 | AA214: 44 | AB214: 1078 | AC214: 4312
C215: 013 | D215: True Navy | H215: 24.5 | I215: 98 | L215: 4 | M215: 10 | N215: 10 | O215: 8 | P215: 2 | AA215: 34 | AB215: 833 | AC215: 3332
C216: 009 | D216: Grey Sage | H216: 24.5 | I216: 98 | L216: 8 | M216: 12 | N216: 12 | O216: 10 | P216: 2 | AA216: 44 | AB216: 1078 | AC216: 4312
AA217: 0 | AB217: 0 | AC217: 0
L220: 4/XS | M220: 6/S | N220: 8/M | O220: 10/L | P220: 12/XL | AA220: Total | AB220: Wholesale | AC220: Retail
A221: 52779907 | B221: lululemon: Unlimit High-Rise Tight 25" | C221: 001 | D221: Black | H221: 24.5 | I221: 98 | L221: 6 | M221: 12 | N221: 12 | O221: 12 | P221: 4 | AA221: =SUM(L221:P221) -> 46 | AB221: =ROUND(AA221*H221,2) -> 1127 | AC221: =ROUND(AA221*I221,2) -> 4508
B222: Nylon, Lycra® elastane | C222: 007 | D222: Brier Rose | H222: 24.5 | I222: 98 | L222: 6 | M222: 12 | N222: 12 | O222: 12 | P222: 4 | AA222: 46 | AB222: 1127 | AC222: 4508
L223: =L223:AC223 -> #REF!
AA224: =SUM(L224:P224) -> 0 | AB224: =ROUND(AA224*H224,2) -> 0 | AC224: =ROUND(AA224*I224,2) -> 0
L229: 4/XS | M229: 6/S | N229: 8/M | O229: 10/L | P229: 12/XL | AA229: Total | AB229: Wholesale | AC229: Retail
A230: 53355178 | B230: lululemon: Align Pant 28" | C230: 009 | D230: Grey Sage | H230: 24.5 | I230: 98 | L230: 6 | M230: 12 | N230: 12 | O230: 10 | P230: 4 | AA230: =SUM(L230:P230) -> 44 | AB230: =ROUND(AA230*H230,2) -> 1078 | AC230: =ROUND(AA230*I230,2) -> 4312
B231: Nylon, Lycra® elastane | C231: 222 | D231: Formulate Emboss Medium Olive | H231: 24.5 | I231: 98 | L231: 6 | M231: 12 | N231: 12 | O231: 10 | P231: 4 | AA231: 44 | AB231: 1078 | AC231: 4312
C232: 224 | D232: Formulate Emboss Black | H232: 24.5 | I232: 98 | L232: 6 | M232: 12 | N232: 12 | O232: 10 | P232: 4 | AA232: 44 | AB232: 1078 | AC232: 4312
C233: 055 | D233: Chambray | H233: 24.5 | I233: 98 | M233: 8 | N233: 8 | O233: 6 | P233: 2 | AA233: 24 | AB233: 588 | AC233: 2352
L238: 4/XS | M238: 6/S | N238: 8/M | O238: 10/L | P238: 12/XL | AA238: Total | AB238: Wholesale | AC238: Retail
A239: 51159663 | B239: lululemon: Align Super High-Rise Pant 28" | C239: 031 | D239: Dark Olive | H239: 24.5 | I239: 98 | L239: 4 | M239: 12 | N239: 12 | O239: 10 | P239: 2 | AA239: =SUM(L239:P239) -> 40 | AB239: =ROUND(AA239*H239,2) -> 980 | AC239: =ROUND(AA239*I239,2) -> 3920
B240: Nylon, Lycra® elastane | C240: 001 | D240: Black | H240: 24.5 | I240: 98 | L240: 4 | M240: 12 | N240: 12 | O240: 10 | P240: 2 | AA240: 40 | AB240: 980 | AC240: 3920
C241: 091 | D241: Incognito Camo Multi Grey | H241: 24.5 | I241: 98 | L241: 4 | M241: 12 | N241: 12 | O241: 10 | P241: 2 | AA241: 40 | AB241: 980 | AC241: 3920
L247: 4/XS | M247: 6/S | N247: 8/M | O247: 10/L | P247: 12/XL | AA247: Total | AB247: Wholesale | AC247: Retail
A248: 50851203 | B248: lululemon: Align High Rise Crop 17" | C248: 444 | D248: Graphite Grey | H248: 22 | I248: 88 | L248: 8 | M248: 12 | N248: 12 | O248: 8 | P248: 4 | AA248: =SUM(L248:P248) -> 44 | AB248: =ROUND(AA248*H248,2) -> 968 | AC248: =ROUND(AA248*I248,2) -> 3872
B249: Nylon, Lycra® elastane | C249: 031 | D249: Dark Olive | H249: 22 | I249: 88 | L249: 8 | M249: 12 | N249: 12 | O249: 8 | P249: 4 | AA249: 44 | AB249: 968 | AC249: 3872
C250: 055 | D250: Chambray | H250: 22 | I250: 88 | L250: 4 | M250: 8 | N250: 8 | O250: 6 | P250: 2 | AA250: 28 | AB250: 616 | AC250: 2464
C251: 070 | D251: Cassis | H251: 22 | I251: 88 | L251: 4 | M251: 8 | N251: 8 | O251: 6 | P251: 2 | AA251: 28 | AB251: 616 | AC251: 2464
C252: 013 | D252: True Navy | H252: 22 | I252: 88 | L252: 4 | M252: 8 | N252: 8 | O252: 6 | P252: 2 | AA252: 28 | AB252: 616 | AC252: 2464
L256: 4/XS | M256: 6/S | N256: 8/M | O256: 10/L | P256: 12/XL | AA256: Total | AB256: Wholesale | AC256: Retail
A257: 52916020 | B257: lululemon: Run Off Route Mid Rise Crop 21" | C257: 999 | D257: Velocity Mesh Island Mist Black/Black | H257: 22 | I257: 88 | L257: 4 | M257: 12 | N257: 12 | O257: 12 | P257: 4 | AA257: =SUM(L257:P257) -> 44 | AB257: =ROUND(AA257*H257,2) -> 968 | AC257: =ROUND(AA257*I257,2) -> 3872
B258: Nylon, Lycra® elastane | C258: 001 | D258: Black | H258: 22 | I258: 88 | L258: 4 | M258: 12 | N258: 12 | O258: 12 | P258: 4 | AA258: 44 | AB258: 968 | AC258: 3872
AA261: =SUM(L261:P261) -> 0 | AB261: =ROUND(AA261*H261,2) -> 0 | AC261: =ROUND(AA261*I261,2) -> 0
AA262: 0 | AB262: 0 | AC262: 0
AD264: Subtotal for Leggings: | AE264: =ROUND(SUM(AA185:AA263),2) -> 1204 | AF264: 32728 | AG264: 130912
D267: Joggers
L269: 4/XS | M269: 6/S | N269: 8/M | O269: 10/L | P269: 12/XL | AA269: Total | AB269: Wholesale | AC269: Retail
A270: 528987358 | B270: lululemon: Ready to Rulu Jogger 29" | C270: 020 | D270: Cassis | H270: 29.5 | I270: 118 | L270: 2 | M270: 6 | N270: 6 | O270: 4 | P270: 2 | AA270: =SUM(L270:U270) -> 20 | AB270: =ROUND(AA270*H270,2) -> 590 | AC270: =ROUND(AA270*I270,2) -> 2360
B271: Nylon, Lycra® elastane | C271: 001 | D271: Black | H271: 29.5 | I271: 118 | L271: 4 | M271: 8 | N271: 10 | O271: 6 | P271: 2 | AA271: 30 | AB271: 885 | AC271: 3540
C272: 646 | D272: Lunar Rock | H272: 29.5 | I272: 118 | L272: 2 | M272: 4 | N272: 6 | O272: 2 | AA272: 14 | AB272: 413 | AC272: 1652
C273: 770 | D273: Heathered Dark Cast | H273: 29.5 | I273: 118 | M273: 2 | N273: 2 | O273: 2 | AA273: 6 | AB273: 177 | AC273: 708
AA274: =SUM(L274:P274) -> 0 | AB274: 0 | AC274: 0
AA275: 0 | AB275: 0 | AC275: 0
L278: 4/XS | M278: 6/S | N278: 8/M | O278: 10/L | P278: 12/XL | AA278: Total | AB278: Wholesale | AC278: Retail
A279: 55610976 | B279: lululemon: Essential Affinity Mid Rise Jogger 27" | C279: 888 | D279: Saddle Brown | H279: 34.5 | I279: 138 | L279: 4 | M279: 10 | N279: 10 | O279: 8 | P279: 2 | AA279: =SUM(L279:P279) -> 34 | AB279: =ROUND(AA279*H279,2) -> 1173 | AC279: =ROUND(AA279*I279,2) -> 4692
B280: Cupro, Lenzing® modal, Elastane | C280: 001 | D280: Black | H280: 34.5 | I280: 138 | L280: 4 | M280: 10 | N280: 10 | O280: 8 | P280: 2 | AA280: 34 | AB280: 1173 | AC280: 4692
C281: 031 | D281: Dark Olive | H281: 34.5 | I281: 138 | L281: 4 | M281: 8 | N281: 8 | O281: 6 | P281: 2 | AA281: 28 | AB281: 966 | AC281: 3864
AA282: 0 | AB282: 0 | AC282: 0
AA283: 0 | AB283: 0 | AC283: 0
AA284: 0 | AB284: 0 | AC284: 0
L288: 4/XS | M288: 6/S | N288: 8/M | O288: 10/L | P288: 12/XL | AA288: Total | AB288: Wholesale | AC288: Retail
A289: 55043376 | B289: lululemon: Dance Studio Jogger 29" | C289: 013 | D289: True Navy | H289: 24.5 | I289: 98 | L289: 4 | M289: 10 | N289: 10 | O289: 4 | P289: 2 | AA289: =SUM(L289:P289) -> 30 | AB289: =ROUND(AA289*H289,2) -> 735 | AC289: =ROUND(AA289*I289,2) -> 2940
B290: Nylon, Elastane | C290: 031 | D290: Dark Olive | H290: 24.5 | I290: 98 | L290: 4 | M290: 10 | N290: 10 | O290: 6 | P290: 2 | AA290: 32 | AB290: 784 | AC290: 3136
C291: 001 | D291: Black | H291: 24.5 | I291: 98 | L291: 4 | M291: 10 | N291: 10 | O291: 6 | P291: 4 | AA291: 34 | AB291: 833 | AC291: 3332
AA292: 0 | AB292: 0 | AC292: 0
AA293: 0 | AB293: 0 | AC293: 0
AA294: 0 | AB294: 0 | AC294: 0
L296: 4/XS | M296: 6/S | N296: 8/M | O296: 10/L | P296: 12/XL | AA296: Total | AB296: Wholesale | AC296: Retail
A297: 53801973 | B297: lululemon: Beyond the Studio Jogger | C297: 646 | D297: Lunar Rock | H297: 32 | I297: 128 | L297: 6 | M297: 10 | N297: 10 | O297: 6 | P297: 4 | AA297: =SUM(L297:U297) -> 36 | AB297: =ROUND(AA297*H297,2) -> 1152 | AC297: =ROUND(AA297*I297,2) -> 4608
B298: Nylon, Elastane | C298: 001 | D298: Black | H298: 32 | I298: 128 | L298: 6 | M298: 10 | N298: 10 | O298: 6 | P298: 4 | AA298: 36 | AB298: 1152 | AC298: 4608
AA302: =SUM(L302:P302) -> 0 | AB302: =ROUND(AA302*H302,2) -> 0 | AC302: =ROUND(AA302*I302,2) -> 0
... 325 more rows

Sheet Order Form Dialog

Sheet Compatibility Report
B1: Compatibility Report for Term Project_lululemon.xls
B2: Run on 2020-09-13 23:26
B4: The following features in this workbook are not supported by earlier versions of Excel. These features may be lost or degraded when opening this workbook in an earlier version of Excel or if you save this workbook in an earlier file format.
B6: Minor loss of fidelity | E6: # of occurrences | F6: Version
B8: Some cells or styles in this workbook contain formatting that is not supported by the selected file format. These formats will be converted to the closest format available. | E8: 18 | F8: Excel 97-2003
